bitfinex/quotes_ETHUSD_20240630
["timestamp","ask_amount","ask_price","bid_price","bid_amount"]
[1719736275014,1.06543594,3399.6,3399.0,2.2841]
[1719736275302,0.851,3399.4,3398.4,2.2841]
[1719736275606,1.91666326,3399.4,3398.5,0.04283187]
[1719736275769,1.91666326,3399.4,3398.6,0.35058309]
[1719736275770,1.06566326,3399.3,3398.6,0.35058309]
[1719736275968,1.06566326,3399.2,3398.6,0.35058309]
[1719736276290,1.06566326,3399.1,3398.7,0.04283187]
[1719736276488,3.851,3399.4,3398.7,0.26346831]
[1719736276690,1.06570971,3399.3,3398.8,0.04283187]
[1719736276879,1.06570971,3399.3,3398.7,0.26346831]
[1719736277080,1.06570971,3399.3,3398.8,2.32693187]
[1719736278281,3.851,3399.4,3398.8,2.32693187]
[1719736278501,1.06569909,3399.3,3398.8,2.58597189]
[1719736278911,1.06569921,3399.2,3398.8,2.58597189]
[1719736279240,1.06569921,3399.1,3398.8,2.58597189]
[1719736279411,3.851,3399.4,3398.9,0.28494402]
[1719736279608,1.06568814,3399.3,3398.9,0.28494402]
[1719736280008,1.06568814,3399.3,3399.0,0.04283187]
[1719736281530,3.851,3399.4,3399.0,0.04283187]
[1719736281531,1.06566942,3399.2,3399.0,0.04283187]
[1719736281732,1.06566942,3399.1,3399.0,0.04283187]
[1719736282034,1.06566942,3399.3,3399.0,2.71246629]
[1719736282198,1.06566942,3399.2,3399.0,2.71246629]
[1719736282399,1.06566942,3399.1,3399.0,2.71246629]
[1719736282612,1.06566942,3399.3,3399.0,2.42493187]
[1719736282932,1.06566942,3399.2,3399.1,0.05883275]
[1719736283109,5.00505449,3399.8,3399.1,2.42506327]
[1719736283437,4.06535571,3399.7,3399.3,2.3821]
[1719736283731,1.06535571,3399.6,3399.4,0.05882622]
[1719736283938,1.06535571,3399.6,3399.5,0.32919262]
[1719736284145,1.06535571,3399.9,3399.5,0.37215589]
[1719736284307,1.06520123,3399.8,3399.5,0.32919262]
[1719736284639,1.06520612,3399.7,3399.5,0.32919262]
[1719736284808,3.0,3400.0,3399.6,0.27701193]
[1719736285012,1.06522278,3399.9,3399.6,0.27701193]
[1719736285233,1.06522278,3399.9,3399.3,2.3821]
[1719736285736,1.06522278,3399.9,3399.4,0.0588242]
[1719736287903,1.06522556,3399.8,3399.4,0.0588242]
[1719736288102,1.06522556,3399.7,3399.5,0.32919242]
[1719736288339,1.06522556,3399.6,3399.5,0.32919242]
[1719736288705,1.06522556,3399.9,3399.5,0.32919242]
[1719736288926,1.06522556,3399.8,3399.6,0.05882418]
[1719736289157,1.06522556,3399.7,3399.6,0.27701166]
[1719736289380,3.0,3400.0,3399.4,0.851]
[1719736289539,1.0650688,3399.9,3399.5,2.3821]
[1719736290221,3.0,3400.0,3399.5,2.3821]
[1719736290426,3.0,3400.0,3399.7,2.3821]
[1719736290828,1.06506431,3399.9,3399.8,0.05882114]
[1719736291025,3.0,3400.0,3399.8,0.05882114]
[1719736291230,3.0,3400.0,3399.7,2.3821]
[1719736291466,3.0,3400.0,3399.8,0.23821]
[1719736291969,1.06507702,3399.9,3399.8,0.23821]
[1719736292263,6.44872194,3400.1,3399.8,0.23821]
[1719736292562,6.44872194,3400.1,3399.9,2.3552]
[1719736294965,3.0,3400.5,3399.9,2.3552]
[1719736295177,1.06492133,3400.4,3399.9,2.3552]
[1719736297234,3.0,3400.5,3399.9,2.3552]
[1719736297436,1.06492551,3400.4,3399.9,2.3552]
[1719736297652,1.06492551,3400.4,3400.0,0.23552]
[1719736299456,1.06492551,3400.4,3399.9,2.3552]
[1719736300565,1.06503075,3400.3,3399.9,2.3552]
[1719736300768,0.851,3400.4,3399.9,2.3552]
[1719736300970,1.91601671,3400.4,3399.9,2.3552]
[1719736301641,1.06501671,3400.4,3399.9,2.3552]
[1719736301854,3.0,3400.5,3399.9,2.67582]
[1719736302058,3.0,3400.5,3400.0,0.05881569]
[1719736302367,3.0,3400.5,3399.9,2.67582]
[1719736304466,6.44872194,3400.6,3400.2,0.851]
[1719736304666,6.44872194,3400.6,3400.3,2.42390882]
[1719736304892,6.44872194,3400.6,3400.4,0.32749088]
[1719736307049,3.851,3401.0,3400.4,0.32749088]
[1719736307270,3.851,3401.0,3400.5,0.04234653]
[1719736307271,3.0,3400.9,3400.5,0.04234653]
[1719736307442,3.0,3400.9,3400.4,0.32749088]
[1719736307756,0.851,3401.0,3400.5,0.26925909]
[1719736307757,3.0,3401.0,3400.5,0.26925909]
[1719736313577,3.0,3401.0,3400.6,0.05880608]
[1719736314074,0.851,3401.1,3400.5,0.26925909]
[1719736321318,0.851,3401.1,3400.6,2.4273]
[1719736322192,3.0,3401.3,3400.7,0.05880548]
[1719736322374,3.0,3401.3,3400.6,3.2783]
[1719736322573,3.0,3401.3,3400.7,0.32783]
[1719736326322,3.0,3401.3,3400.8,2.3172]
[1719736329324,1.0644543,3401.2,3400.8,2.3172]
[1719736329540,1.0644543,3401.2,3400.9,0.04061758]
[1719736330315,1.0644543,3401.2,3400.9,0.09941883]
[1719736330564,3.0,3401.3,3401.0,2.3172]
[1719736330710,3.0,3401.3,3401.1,0.23578176]
[1719736332921,1.06442171,3401.2,3401.1,0.23578176]
[1719736333159,1.06442171,3401.2,3401.1,0.27639371]
[1719736333461,3.0,3401.3,3401.1,0.27639371]
[1719736333829,3.0,3401.3,3401.1,0.23578176]
[1719736334031,0.851,3401.6,3401.2,0.25529818]
[1719736334369,1.91526426,3401.6,3401.2,0.25529818]
[1719736334712,1.06435532,3401.5,3401.2,0.25529818]
[1719736334912,1.06435532,3401.4,3401.3,0.26312965]
[1719736335229,0.851,3401.6,3401.3,0.26312965]
[1719736335230,1.91535532,3401.6,3401.3,0.26312965]
[1719736335442,1.06435532,3401.5,3401.3,0.26312965]
[1719736335648,0.851,3401.6,3401.3,0.26312965]
[1719736335649,1.06435532,3401.4,3401.3,0.26312965]
[1719736335848,1.91535532,3401.6,3401.0,2.3172]
[1719736337429,0.851,3401.6,3401.0,2.3172]
[1719736337631,1.91531181,3401.6,3401.1,0.23172]
[1719736339389,1.91531181,3401.6,3401.0,2.3172]
[1719736340575,1.06439568,3401.5,3401.0,2.3172]
[1719736340755,1.06439568,3401.4,3401.0,2.3172]
[1719736340963,0.851,3401.6,3401.0,2.3172]
[1719736340964,1.06439241,3401.3,3401.0,2.3172]
[1719736341145,1.06439241,3401.2,3401.0,2.3172]
[1719736341339,1.06439241,3401.1,3401.0,2.54892]
[1719736341559,1.91539585,3401.6,3401.1,0.04051441]
[1719736341770,1.91539587,3401.6,3401.0,2.54892]
[1719736343081,0.851,3401.4,3400.7,2.2561]
[1719736344751,1.91545338,3401.4,3400.7,2.2561]
[1719736344972,0.851,3401.2,3400.4,2.2561]
[1719736345285,0.851,3401.2,3400.8,0.04051441]
[1719736345501,0.851,3401.2,3400.4,2.48171]
[1719736345502,1.91545338,3401.2,3400.4,2.48171]
[1719736345858,1.91545338,3401.2,3400.5,0.04051441]
[1719736346083,1.91545338,3401.2,3400.6,0.25222244]
[1719736346679,1.91545338,3401.2,3400.7,0.04051441]
[1719736347080,1.06465339,3401.1,3400.6,0.25222244]
[1719736347379,1.06465339,3401.0,3400.7,0.04057631]
[1719736347562,0.851,3401.2,3400.6,0.25222244]
[1719736347563,1.06465339,3400.9,3400.6,0.25222244]
[1719736347745,0.851,3401.2,3400.8,0.04057631]
[1719736347952,1.91550289,3401.2,3400.6,0.25222244]
[1719736348154,1.91550289,3401.2,3400.9,0.04057631]
[1719736348355,1.91550289,3401.2,3400.6,0.25222244]
[1719736348556,1.91550289,3401.2,3401.0,0.04057631]
[1719736348755,1.91550289,3401.2,3400.6,0.25222244]
[1719736348952,1.91550289,3401.2,3401.1,0.04057631]
[1719736349256,1.91550289,3401.2,3400.4,2.2561]
[1719736349440,1.91550289,3401.2,3400.6,0.33593224]
[1719736349985,1.91550289,3401.2,3400.7,0.04059694]
[1719736350193,1.06465617,3401.1,3400.6,0.33593224]
[1719736350332,1.91565617,3401.0,3400.8,0.04059694]
[1719736350639,1.06465617,3400.9,3400.4,2.48171]
[1719736350839,0.851,3401.0,3400.4,2.48171]
[1719736350840,1.06465617,3400.8,3400.5,0.248171]
[1719736351054,1.06465617,3400.7,3400.5,0.28876794]
[1719736351239,1.06465617,3400.6,3400.5,0.28876794]
[1719736351464,1.06465617,3400.6,3400.5,0.04059694]
[1719736351635,0.851,3401.0,3400.5,0.04059694]
[1719736351841,0.851,3401.0,3400.4,2.2561]
[1719736352343,1.91565617,3401.0,3400.4,2.2561]
[1719736352550,1.06465617,3400.9,3400.5,0.22561]
[1719736352759,1.06465617,3400.8,3400.5,0.26621632]
[1719736352960,1.06465617,3400.7,3400.5,0.26621632]
[1719736353161,0.851,3401.0,3400.6,0.25223163]
[1719736361594,0.851,3401.0,3400.7,2.2561]
[1719736361826,0.851,3401.2,3400.7,2.2561]
[1719736361959,0.851,3401.2,3400.8,0.04060632]
[1719736362166,0.851,3401.2,3400.7,2.2561]
[1719736362477,0.851,3401.2,3400.9,0.04060632]
[1719736362675,0.851,3401.2,3400.7,2.2561]
[1719736363561,1.06448023,3401.3,3400.7,2.2561]
[1719736364003,1.06448023,3401.2,3400.7,2.2561]
[1719736364326,1.06448023,3401.1,3400.8,0.22561]
[1719736364500,1.06448023,3401.0,3400.8,0.22561]
[1719736364669,0.851,3401.4,3400.9,0.04059695]
[1719736364869,0.851,3401.4,3400.9,0.2522307]
[1719736369290,1.915462,3401.4,3400.9,0.2522307]
[1719736369493,1.064462,3401.3,3400.7,2.2561]
[1719736369706,1.064462,3401.2,3400.7,2.2561]
[1719736369885,1.064462,3401.1,3400.7,2.56681]
[1719736370113,1.064462,3401.0,3400.7,2.56681]
[1719736370287,1.064462,3400.9,3400.8,0.29727795]
[1719736370687,0.851,3401.4,3400.8,0.29727795]
[1719736371083,0.851,3401.4,3400.8,0.256681]
[1719736378443,0.851,3401.2,3400.7,2.2561]
[1719736379531,1.91559834,3401.2,3400.7,2.2561]
[1719736379944,1.06459834,3401.1,3400.7,2.2561]
[1719736380092,1.06459834,3401.0,3400.7,2.56681]
[1719736380286,3.851,3401.4,3400.7,2.56681]
[1719736380287,1.06459834,3400.9,3400.7,2.56681]
[1719736380483,0.851,3401.4,3400.7,2.56681]
[1719736380484,1.06459834,3400.8,3400.7,2.56681]
[1719736380697,0.851,3401.4,3400.7,2.56681]
[1719736380897,1.91538466,3401.4,3400.7,2.56681]
[1719736381335,1.06448412,3401.3,3400.7,2.56681]
[1719736381540,1.06448412,3401.2,3400.7,2.56681]
[1719736381709,0.851,3401.4,3400.7,2.56681]
[1719736381710,1.06448412,3401.1,3400.7,2.56681]
[1719736381914,1.06448412,3401.0,3400.7,2.56681]
[1719736382225,1.0645021,3400.9,3400.7,2.56681]
[1719736382430,0.851,3401.4,3400.8,0.256681]
[1719736382735,0.851,3401.4,3400.7,2.56681]
[1719736382736,1.91549944,3401.4,3400.7,2.56681]
[1719736384312,0.851,3401.4,3400.7,2.56681]
[1719736384641,1.9155002,3401.4,3400.7,2.56681]
[1719736384940,1.0645002,3401.3,3400.7,2.56681]
[1719736385141,1.0645002,3401.2,3400.7,2.56681]
[1719736385441,1.0645002,3401.1,3400.7,2.56681]
[1719736385741,1.0645002,3401.0,3400.7,2.56681]
[1719736386042,1.0645002,3400.9,3400.7,2.56681]
[1719736386343,0.851,3401.4,3400.8,0.256681]
[1719736386516,0.851,3401.4,3400.7,2.56681]
[1719736387241,0.851,3401.4,3400.7,2.2561]
[1719736387543,0.851,3401.2,3400.7,2.2561]
[1719736387913,0.851,3401.2,3399.8,1.178378]
[1719736387914,1.91555817,3401.2,3399.8,1.178378]
[1719736388151,1.91555817,3401.2,3400.1,2.4555]
[1719736388515,1.91555817,3401.2,3400.2,2.49602945]
[1719736390417,0.851,3400.8,3400.2,2.49602945]
[1719736390830,1.9157137,3401.0,3400.2,2.49602945]
[1719736391028,1.9157137,3401.0,3400.3,0.24960295]
[1719736391328,1.06471466,3400.9,3400.3,0.29015678]
[1719736391636,1.06471466,3400.8,3400.3,0.29015678]
[1719736391876,1.06471466,3400.7,3400.4,0.27456568]
[1719736392015,1.06471466,3400.6,3400.4,0.27456568]
[1719736392346,1.06471466,3400.5,3400.4,0.27456568]
[1719736392549,1.06471466,3400.5,3400.2,2.4555]
[1719736392718,1.06471466,3400.4,3400.2,2.4555]
[1719736392918,0.851,3401.0,3400.2,2.4555]
[1719736393118,1.91573121,3401.0,3400.2,2.4555]
[1719736393357,1.91573121,3401.0,3400.3,0.28610383]
[1719736394054,0.851,3401.0,3400.3,0.28610383]
[1719736394362,1.06472961,3401.0,3400.4,2.4555]
[1719736394551,1.06472961,3400.9,3400.4,2.4555]
[1719736394756,1.06472961,3400.8,3400.4,2.4555]
[1719736394957,1.06472961,3400.7,3400.5,0.24555]
[1719736395139,1.06472961,3400.6,3400.5,0.28610383]
[1719736395352,1.06472961,3400.6,3400.5,0.04055383]
[1719736395539,1.06472961,3401.1,3400.5,0.04055383]
[1719736395764,1.06472961,3401.0,3400.5,0.04055383]
[1719736396075,1.06472961,3400.9,3400.5,0.29015921]
[1719736396370,1.06472961,3400.8,3400.5,0.29015921]
[1719736396571,1.06472961,3400.7,3400.5,0.29015921]
[1719736396731,1.06472961,3400.6,3400.5,0.29015921]
[1719736397069,1.06472961,3401.1,3400.5,0.29015921]
[1719736397297,1.06453253,3401.0,3400.6,0.27456592]
[1719736397584,1.06453253,3400.9,3400.4,2.4555]
[1719736397730,1.06453253,3400.8,3400.4,2.4555]
[1719736397936,5.85463268,3401.2,3400.4,2.4555]
[1719736397937,1.06453253,3400.7,3400.4,2.4555]
[1719736398134,5.85463268,3401.2,3400.4,2.78615]
[1719736398135,1.06453253,3400.6,3400.4,2.78615]
[1719736398370,1.06453253,3400.5,3400.4,2.78615]
[1719736398669,0.851,3401.0,3400.4,2.4555]
[1719736400489,1.91581085,3401.0,3400.4,2.4555]
[1719736400691,1.06481085,3400.9,3400.4,2.4555]
[1719736400841,0.851,3401.0,3400.4,2.4555]
[1719736400842,1.06481863,3400.8,3400.4,2.4555]
[1719736401038,1.06481863,3400.7,3400.4,2.4555]
[1719736401239,1.06481863,3400.6,3400.4,2.4555]
[1719736401439,1.06481863,3400.5,3400.4,2.4555]
[1719736402171,0.851,3401.0,3400.4,2.4555]
[1719736402372,0.851,3400.6,3400.0,2.3317]
[1719736412452,0.851,3400.6,3399.7,2.3317]
[1719736412678,2.2892,3400.5,3399.8,0.35889508]
[1719736412892,1.06491746,3400.4,3399.8,0.35889508]
[1719736413089,4.20511746,3400.4,3399.8,0.35889508]
[1719736413304,0.851,3400.1,3399.5,2.3317]
[1719736413463,0.851,3400.1,3399.6,0.27394514]
[1719736414991,1.9161438,3400.3,3399.6,0.27394514]
[1719736415363,1.9161438,3400.3,3399.6,0.23317]
[1719736416287,1.9161438,3400.3,3399.7,2.3317]
[1719736416485,1.06517844,3400.2,3399.8,0.04077514]
[1719736416690,1.06517844,3400.1,3399.7,2.3317]
[1719736416999,0.851,3400.3,3399.8,0.23317]
[1719736418681,0.851,3400.3,3399.7,2.3317]
[1719736418892,0.851,3400.3,3399.8,0.04077514]
[1719736419202,0.851,3400.3,3399.7,2.3317]
[1719736419569,0.851,3400.3,3399.8,0.04077514]
[1719736419973,1.06517573,3400.5,3399.8,0.05882446]
[1719736420174,1.91617573,3400.4,3399.5,2.3317]
[1719736420379,1.06517573,3400.3,3399.5,2.3317]
[1719736420576,1.06517573,3400.2,3399.7,2.3317]
[1719736420781,0.851,3400.4,3399.7,2.3317]
[1719736421506,0.851,3400.4,3399.8,0.04077514]
[1719736421806,0.851,3400.4,3399.7,2.3317]
[1719736422006,0.851,3400.4,3399.8,0.23317]
[1719736422215,0.851,3400.4,3399.8,0.27394514]
[1719736423373,1.91617037,3400.4,3399.8,0.23317]
[1719736423599,1.06517037,3400.3,3399.8,0.23317]
[1719736423907,1.06517037,3400.2,3399.8,0.23317]
[1719736424208,0.851,3400.4,3399.9,0.256487]
[1719736425912,0.851,3400.4,3399.7,2.3317]
[1719736429478,3.2355,3400.4,3399.7,2.3317]
[1719736429682,0.851,3400.2,3399.2,2.3021]
[1719736429887,0.851,3400.0,3399.3,0.27100767]
[1719736430087,1.91619037,3400.2,3399.3,0.27100767]
[1719736431682,1.06519037,3400.2,3399.3,0.27100767]
[1719736431888,1.06519037,3400.2,3399.5,2.3021]
[1719736432084,1.06519037,3400.2,3399.6,0.04086334]
[1719736432284,1.06519037,3400.1,3399.6,2.3021]
[1719736432522,1.06519037,3400.0,3399.7,2.65827334]
[1719736432830,0.851,3400.5,3399.7,2.65827334]
[1719736433014,1.91617214,3400.5,3399.7,2.65827334]
[1719736433211,1.91617214,3400.5,3399.7,2.61741]
[1719736435731,1.06517375,3400.4,3399.7,2.61741]
[1719736436024,1.06517375,3400.3,3399.7,2.61741]
[1719736436199,0.851,3400.5,3399.7,2.61741]
[1719736436200,1.06517375,3400.2,3399.7,2.61741]
[1719736436523,1.06517375,3400.1,3399.8,0.04082957]
[1719736436689,1.06517375,3400.0,3399.8,2.3021]
[1719736436884,1.06517375,3399.9,3399.8,2.53231]
[1719736437085,1.06517375,3399.9,3399.8,2.3021]
[1719736437415,4.06517375,3400.4,3399.8,2.3021]
[1719736437635,1.06517375,3400.3,3399.8,2.3021]
[1719736437783,1.06517375,3400.3,3399.8,2.53231]
[1719736438816,3.0,3400.4,3399.8,2.53231]
[1719736438984,1.06517665,3400.3,3399.8,2.53231]
[1719736439187,3.0,3400.4,3399.8,2.53231]
[1719736439380,1.06517655,3400.3,3399.8,2.53231]
[1719736439623,1.06517655,3400.3,3399.8,2.3021]
[1719736441334,1.06516116,3400.2,3399.8,2.3021]
[1719736441488,1.06516116,3400.1,3399.8,2.3021]
[1719736441693,1.06516116,3400.0,3399.8,2.3021]
[1719736442017,3.0,3400.4,3399.8,2.3021]
[1719736442319,1.065161,3400.3,3399.8,2.3021]
[1719736443416,1.916161,3400.3,3399.8,2.3021]
[1719736443811,1.916161,3400.3,3399.2,0.851]
[1719736443998,0.851,3400.1,3399.3,2.3602]
[1719736444198,0.851,3400.1,3399.3,2.40104081]
[1719736444199,1.916161,3400.1,3399.3,2.40104081]
[1719736444428,1.06528393,3400.0,3399.3,2.40104081]
[1719736444709,1.06528393,3399.9,3399.3,2.72624489]
[1719736444907,1.06528393,3399.8,3399.3,2.72624489]
[1719736445102,1.06528393,3399.7,3399.3,0.04084081]
[1719736445317,1.06528393,3399.6,3399.2,2.3602]
[1719736445491,1.06528393,3399.5,3399.3,0.04084081]
[1719736445689,1.06528393,3399.4,3399.2,2.3602]
[1719736445923,0.851,3399.8,3399.3,0.04084081]
[1719736446127,1.06549449,3400.1,3399.2,2.3602]
[1719736446326,0.851,3400.0,3399.2,2.59622]
[1719736447625,1.9163069,3400.0,3399.2,2.59622]
[1719736447827,1.0653069,3399.9,3399.4,2.3602]
[1719736448029,1.0653069,3399.8,3399.4,2.3602]
[1719736448233,1.0653069,3399.7,3399.4,2.3602]
[1719736448544,1.0653069,3399.6,3399.5,0.27686081]
[1719736449133,0.851,3400.1,3399.5,0.27686081]
[1719736449336,0.851,3400.1,3399.5,0.23602]
[1719736450600,0.851,3400.1,3399.6,2.3602]
[1719736451003,1.91626078,3400.1,3399.6,2.3602]
[1719736451202,1.06526138,3400.0,3399.7,0.04084081]
[1719736451459,1.06526138,3399.9,3399.7,0.04084081]
[1719736451636,1.06526138,3399.8,3399.7,0.04084081]
[1719736453848,0.851,3400.1,3399.7,0.04084081]
[1719736458031,1.91625997,3400.1,3399.7,0.04084081]
[1719736458336,1.06525997,3400.0,3399.7,0.04084081]
[1719736458536,1.06525997,3399.9,3399.7,0.04084081]
[1719736458739,1.06525997,3399.8,3399.7,0.04084081]
[1719736458940,0.851,3400.1,3399.7,0.04084081]
[1719736459243,1.06525997,3400.3,3399.7,0.04084081]
[1719736459460,1.06525997,3400.3,3399.8,2.60030408]
[1719736460256,1.06525997,3400.3,3399.8,2.3602]
[1719736460437,3.851,3400.4,3399.8,2.3602]
[1719736460438,1.0650526,3400.2,3399.8,2.3602]
[1719736460645,1.0650526,3400.1,3399.8,2.3602]
[1719736460845,1.06510238,3400.0,3399.8,2.3602]
[1719736461049,3.851,3400.4,3399.9,0.04094214]
[1719736461347,1.06510108,3400.3,3399.8,2.59622]
[1719736461518,1.06510108,3400.3,3399.8,2.3602]
[1719736463110,1.06510108,3400.3,3399.9,0.851]
[1719736463320,6.44872194,3400.5,3400.0,2.431]
[1719736463629,1.06496339,3400.4,3400.0,2.431]
[1719736464919,1.06466791,3400.3,3400.0,2.48981584]
[1719736465121,3.0,3400.7,3400.2,2.431]
[1719736465432,1.06465131,3400.6,3400.2,2.431]
[1719736465829,1.06465131,3400.6,3400.4,2.431]
[1719736466025,1.06465131,3400.6,3400.5,0.851]
[1719736466231,6.44872194,3401.1,3400.6,2.431]
[1719736466419,1.06451298,3401.0,3400.6,2.431]
[1719736466658,6.44872194,3401.1,3400.6,2.431]
[1719736466880,1.06432923,3401.0,3400.7,0.33228277]
[1719736467372,6.44872194,3401.1,3400.7,0.33228277]
[1719736470956,10.29972194,3401.5,3400.7,0.33228277]
[1719736471284,1.06429835,3401.4,3400.7,0.33228277]
[1719736472493,10.29972194,3401.5,3400.7,0.33228277]
[1719736478480,10.29972194,3401.5,3400.6,2.431]
[1719736480787,3.2539,3401.3,3400.6,2.431]
[1719736480955,0.851,3401.0,3400.4,2.431]
[1719736481314,0.851,3401.0,3400.5,0.28367633]
[1719736481600,0.851,3401.0,3400.5,0.04057633]
[1719736481745,0.851,3400.7,3400.5,0.04057633]
[1719736481947,0.851,3400.7,3400.0,2.3101]
[1719736482188,0.851,3400.7,3400.1,0.04061009]
[1719736482549,0.851,3400.7,3400.0,2.3101]
[1719736482751,0.851,3400.7,3400.1,0.03930719]
[1719736483491,0.851,3400.7,3400.0,2.3101]
[1719736483684,0.851,3400.7,3400.2,0.03933901]
[1719736483889,0.851,3400.7,3400.0,2.3101]
[1719736484059,0.851,3400.7,3400.3,0.03933901]
[1719736484254,0.851,3400.7,3400.0,2.3101]
[1719736484669,0.851,3400.7,3400.1,0.03933901]
[1719736484889,3.0,3401.0,3400.1,0.03933901]
[1719736484890,0.851,3400.9,3400.1,0.03933901]
[1719736485091,3.0,3401.0,3400.2,2.3101]
[1719736486201,3.0,3401.0,3400.3,0.03933901]
[1719736491387,1.064792,3400.9,3400.3,0.03933901]
[1719736491906,3.0,3401.0,3400.3,0.03933901]
[1719736492066,1.06479049,3400.9,3400.3,0.03933901]
[1719736492781,3.0,3401.0,3400.3,0.03933901]
[1719736492987,3.0,3401.0,3400.3,1.21038291]
[1719736493303,3.0,3401.0,3400.4,2.4202]
[1719736493663,3.0,3401.0,3400.5,0.03934277]
[1719736497981,3.0,3401.0,3400.5,0.89034277]
[1719736500179,2.4266,3400.9,3400.5,0.03934277]
[1719736500506,3.0,3400.9,3400.3,0.851]
[1719736500811,3.0,3401.0,3400.4,0.03934277]
[1719736501310,3.0,3401.0,3400.5,2.4202]
[1719736501784,3.0,3401.0,3400.6,0.03934277]
[1719736503778,3.0,3401.3,3400.6,0.03934277]
[1719736503980,3.0,3401.3,3400.7,2.2566]
[1719736503981,1.06445009,3401.2,3400.7,2.2566]
[1719736504180,3.0,3401.3,3401.0,0.851]
[1719736504877,6.44872194,3401.8,3401.2,0.851]
[1719736505073,6.44872194,3402.1,3401.6,0.851]
[1719736505316,6.44872194,3402.1,3401.7,2.2566]
[1719736505681,6.44872194,3402.1,3401.4,3.1076]
[1719736506416,3.0,3402.0,3401.4,3.1076]
[1719736506592,3.0,3402.0,3401.4,2.2566]
[1719736506798,3.0,3402.0,3401.4,3.1076]
[1719736511423,0.851,3401.9,3401.4,2.2566]
[1719736512304,0.851,3401.9,3401.5,0.22566]
[1719736512687,0.851,3401.9,3401.4,2.2566]
[1719736513696,3.0,3402.0,3401.4,2.2566]
[1719736513995,6.44872194,3402.1,3401.5,0.851]
[1719736514699,6.44872194,3402.1,3401.4,2.2566]
[1719736515021,6.44872194,3402.1,3401.5,0.22566]
[1719736515599,0.851,3402.3,3401.5,0.22566]
[1719736516006,3.851,3402.3,3401.5,0.22566]
[1719736519922,0.851,3402.1,3401.5,0.22566]
[1719736520612,3.851,3402.1,3401.5,0.22566]
[1719736522105,3.851,3402.1,3401.2,0.851]
[1719736522339,3.851,3402.1,3400.2,6.106]
[1719736522340,0.851,3401.9,3401.1,2.304]
[1719736522747,0.851,3401.7,3401.1,2.304]
[1719736523043,0.851,3401.7,3401.2,0.03762727]
[1719736524269,0.851,3401.5,3401.2,0.03762727]
[1719736524611,0.851,3401.5,3400.7,2.304]
[1719736524932,0.851,3401.5,3400.8,0.2680185]
[1719736526623,3.0,3401.8,3400.8,0.2680185]
[1719736526823,0.851,3401.7,3400.8,0.2304]
[1719736527161,0.851,3401.7,3400.9,0.3761585]
[1719736527743,0.851,3401.7,3400.9,0.33854]
[1719736530452,0.851,3401.7,3401.0,0.0376185]
[1719736533933,3.0,3401.8,3401.0,0.0376185]
[1719736534156,2.3688,3401.9,3401.1,2.304]
[1719736534157,0.851,3401.7,3401.1,2.304]
[1719736534458,0.851,3401.7,3401.2,0.03774548]
[1719736536862,3.0,3401.8,3401.2,0.03774548]
[1719736537365,3.851,3401.9,3401.2,0.03774548]
[1719736537754,3.851,3401.9,3401.1,2.304]
[1719736539229,3.0,3401.9,3401.1,2.304]
[1719736539428,3.0,3401.9,3401.1,2.653354]
[1719736541364,3.851,3401.9,3401.1,2.653354]
[1719736541570,1.06395916,3401.8,3401.1,2.653354]
[1719736541933,3.851,3401.9,3401.1,2.653354]
[1719736542264,1.0639593,3401.8,3401.1,2.653354]
[1719736545072,3.851,3401.9,3401.1,2.653354]
[1719736545238,1.06395957,3401.8,3401.1,2.653354]
[1719736545563,3.851,3401.9,3401.1,2.653354]
[1719736545564,1.06395653,3401.7,3401.1,2.653354]
[1719736545792,3.0,3401.9,3401.1,2.653354]
[1719736545967,1.0639567,3401.8,3401.1,2.653354]
[1719736546687,1.0639567,3401.8,3401.2,0.3504354]
[1719736546862,3.0,3401.9,3401.5,2.3106]
[1719736547878,3.0,3401.9,3401.6,0.851]
[1719736548080,3.0,3401.9,3401.7,2.3106]
[1719736548457,6.44872194,3402.0,3401.7,2.62676]
[1719736551462,3.0,3402.4,3401.7,2.62676]
[1719736551661,1.06699434,3402.3,3401.7,2.62676]
[1719736554601,3.0,3402.4,3401.7,2.62676]
[1719736554799,1.06694412,3402.3,3401.7,2.62676]
[1719736555202,1.06694412,3402.3,3401.8,0.347776]
[1719736555506,1.06694412,3402.3,3401.9,0.03768944]
[1719736555882,1.06694412,3402.3,3401.8,0.347776]
[1719736556102,1.06694412,3402.3,3401.9,0.03768944]
[1719736556474,1.06694412,3402.3,3401.8,0.347776]
[1719736556672,1.06694412,3402.3,3401.9,0.03768944]
[1719736556879,1.06694412,3402.3,3402.0,2.3106]
[1719736557072,3.0,3402.4,3402.0,2.3106]
[1719736557073,3.0,3402.4,3402.1,0.03768944]
[1719736557281,3.0,3402.4,3402.0,2.3106]
[1719736557282,1.06693152,3402.3,3402.0,2.3106]
[1719736557485,1.06693152,3402.3,3402.1,0.03759424]
[1719736557781,3.0,3402.4,3402.1,0.03759424]
[1719736558010,3.0,3402.4,3402.0,2.3106]
[1719736558227,1.06693493,3402.3,3402.0,2.3106]
[1719736558380,3.0,3402.4,3402.1,0.03759424]
[1719736558583,3.0,3402.4,3402.0,2.3106]
[1719736560226,3.0,3402.4,3402.0,2.62676]
[1719736560844,0.851,3402.6,3402.0,2.62676]
[1719736561048,1.91791717,3402.6,3402.0,2.3106]
[1719736562388,1.91791717,3402.6,3401.7,2.2877]
[1719736563100,0.851,3402.2,3400.6,2.2877]
[1719736563297,0.851,3402.2,3401.3,2.2877]
[1719736563486,0.851,3402.2,3401.4,0.03759424]
[1719736563690,1.06712519,3402.3,3401.5,2.2877]
[1719736563996,1.06712519,3402.3,3401.6,0.03759424]
[1719736564210,1.06712519,3402.3,3401.7,2.2877]
[1719736564413,0.851,3402.5,3401.7,2.2877]
[1719736564590,1.9179298,3402.5,3401.7,2.2877]
[1719736565535,0.851,3402.5,3401.7,2.2877]
[1719736568719,3.1406,3402.5,3401.4,0.851]
[1719736568926,4.06695573,3402.4,3401.4,0.851]